fUST/lending_fUST_20250828
["ID","MTS","AMOUNT","RATE_DAILY","PERIOD"]
[381799860,1756353055491,-769.8,0.00020798,2]
[381799861,1756353055501,-480.0,0.00020798,2]
[381799862,1756353055510,-480.0,0.00020798,2]
[381799863,1756353055519,-480.0,0.00020798,2]
[381799864,1756353055528,-270.335238,0.00020798,2]
[381799865,1756353055537,-708.47,0.00020798,2]
[381799866,1756353055547,-480.0,0.00020798,2]
[381799867,1756353055556,-480.0,0.00020798,2]
[381799868,1756353055566,-480.0,0.00020798,2]
[381799869,1756353055575,-722.0,0.00020798,2]
[381799870,1756353055584,-1168.2,0.00020798,2]
[381799871,1756353055593,-480.0,0.00020798,2]
[381799872,1756353055603,-480.0,0.00020798,2]
[381799873,1756353055612,-480.0,0.00020798,2]
[381799874,1756353055621,-218.012443,0.00020798,2]
[381799875,1756353055631,-151.0,0.00020798,2]
[381799876,1756353055640,-567.19,0.00020798,2]
[381799877,1756353055650,-480.0,0.00020798,2]
[381799878,1756353055659,-218.012443,0.00020798,2]
[381799879,1756353055668,-218.012443,0.00020798,2]
[381799880,1756353055678,-151.0,0.00020798,2]
[381799881,1756353055687,-480.0,0.00020798,2]
[381799882,1756353055697,-572.41,0.00020798,2]
[381799883,1756353055706,-218.012443,0.00020798,2]
[381799884,1756353055715,-487.46080175,0.00020798,2]
[381799885,1756353055725,-480.62226163,0.00020798,2]
[381799886,1756353055738,-480.0,0.00020798,2]
[381799887,1756353055747,-332.942545,0.00020798,2]
[381799888,1756353055756,-480.0,0.00020798,2]
[381799889,1756353055766,-151.0,0.00020798,2]
[381799890,1756353055775,-480.0,0.00020798,2]
[381799891,1756353055784,-332.942545,0.00020798,2]
[381799892,1756353055793,-480.0,0.00020798,2]
[381799893,1756353055802,-151.0,0.00020798,2]
[381799894,1756353055812,-764.61,0.00020798,2]
[381799895,1756353055821,-332.942545,0.00020798,2]
[381799896,1756353055830,-151.0,0.00020798,2]
[381799897,1756353055839,-480.0,0.00020798,2]
[381799898,1756353055848,-332.942545,0.00020798,2]
[381799899,1756353055858,-151.0,0.00020798,2]
[381799900,1756353055867,-151.0,0.00020798,2]
[381799901,1756353055876,-151.0,0.00020798,2]
[381799902,1756353055885,-480.0,0.00020798,2]
[381799903,1756353055894,-480.0,0.00020798,2]
[381799904,1756353055903,-151.0,0.00020798,2]
[381799905,1756353055914,-532.9,0.00020798,2]
[381799906,1756353055924,-151.0,0.00020798,2]
[381799907,1756353055935,-480.0,0.00020798,2]
[381799908,1756353055944,-151.0,0.00020798,2]
[381799909,1756353055953,-690.1,0.00020798,2]
[381799910,1756353055964,-480.0,0.00020798,2]
[381799911,1756353055975,-212.741212,0.00020798,2]
[381799912,1756353055985,-212.741212,0.00020798,2]
[381799913,1756353055994,-739.71,0.00020798,2]
[381799914,1756353056004,-212.741212,0.00020798,2]
[381799915,1756353056013,-480.0,0.00020798,2]
[381799916,1756353056023,-212.741212,0.00020798,2]
[381799917,1756353056035,-480.0,0.00020798,2]
[381799918,1756353056047,-480.0,0.00020798,2]
[381799919,1756353056056,-1304.98,0.00020798,2]
[381799920,1756353056065,-480.0,0.00020798,2]
[381799921,1756353056075,-480.0,0.00020798,2]
[381799922,1756353056084,-151.0,0.00020798,2]
[381799923,1756353056093,-480.0,0.00020798,2]
[381799924,1756353056103,-151.0,0.00020798,2]
[381799925,1756353056112,-151.0,0.00020798,2]
[381799926,1756353056121,-151.0,0.00020798,2]
[381799927,1756353056131,-151.0,0.00020798,2]
[381799928,1756353056140,-480.0,0.00020798,2]
[381799929,1756353056150,-624.08,0.00020798,2]
[381799930,1756353056159,-151.0,0.00020798,2]
[381799931,1756353056168,-159.540892,0.00020798,2]
[381799932,1756353056178,-480.0,0.00020798,2]
[381799933,1756353056193,-480.0,0.00020798,2]
[381799934,1756353056202,-480.0,0.00020798,2]
[381799935,1756353056212,-483.17134051,0.00020798,2]
[381799936,1756353056221,-480.0,0.00020798,2]
[381799937,1756353056232,-562.67,0.00020798,2]
[381799938,1756353056241,-480.0,0.00020798,2]
[381799939,1756353056250,-216.21874,0.00020798,2]
[381799940,1756353056259,-216.21874,0.00020798,2]
[381799941,1756353056270,-216.21874,0.00020798,2]
[381799942,1756353056280,-674.06,0.00020798,2]
[381799943,1756353056290,-603.295165,0.00020798,2]
[381799944,1756353056299,-216.21874,0.00020798,2]
[381799945,1756353056309,-646.74,0.00020798,2]
[381799946,1756353056318,-603.295165,0.00020798,2]
[381799947,1756353056327,-603.295165,0.00020798,2]
[381799948,1756353056337,-480.0,0.00020798,2]
[381799949,1756353056347,-748.74,0.00020798,2]
[381799950,1756353056356,-603.295165,0.00020798,2]
[381799951,1756353056365,-556.12,0.00020798,2]
[381799952,1756353056375,-151.0,0.00020798,2]
[381799953,1756353056384,-151.0,0.00020798,2]
[381799954,1756353056394,-965.16,0.00020798,2]
[381799955,1756353056403,-480.0,0.00020798,2]
[381799956,1756353056413,-610.04,0.00020798,2]
[381799957,1756353056423,-151.0,0.00020798,2]
[381799958,1756353056432,-552.0,0.00020798,2]
[381799959,1756353056441,-151.0,0.00020798,2]
[381799960,1756353056450,-480.0,0.00020798,2]
[381799961,1756353056460,-480.0,0.00020798,2]
[381799962,1756353056470,-480.0,0.00020798,2]
[381799963,1756353056479,-151.0,0.00020798,2]
[381799964,1756353056488,-151.0,0.00020798,2]
[381799965,1756353056497,-480.0,0.00020798,2]
[381799966,1756353056506,-151.0,0.00020798,2]
[381799967,1756353056516,-218.28,0.00020798,2]
[381799968,1756353056525,-151.0,0.00020798,2]
[381799969,1756353056534,-576.67,0.00020798,2]
[381799970,1756353056544,-480.0,0.00020798,2]
[381799971,1756353056553,-550.81,0.00020798,2]
[381799972,1756353056562,-662.63,0.00020798,2]
[381799973,1756353056571,-151.0,0.00020798,2]
[381799974,1756353056581,-1831.595789,0.00020798,2]
[381799975,1756353056590,-1831.595789,0.00020798,2]
[381799976,1756353056600,-151.0,0.00020798,2]
[381799977,1756353056609,-151.0,0.00020798,2]
[381799978,1756353056618,-511.105642,0.00020798,2]
[381799979,1756353056627,-1831.595789,0.00020798,2]
[381799980,1756353056636,-151.0,0.00020798,2]
[381799981,1756353056645,-151.0,0.00020798,2]
[381799982,1756353056654,-511.105642,0.00020798,2]
[381799983,1756353056663,-1831.595789,0.00020798,2]
[381799984,1756353056672,-151.0,0.00020798,2]
[381799985,1756353056681,-511.105642,0.00020798,2]
[381799986,1756353056691,-209.901295,0.00020798,2]
[381799987,1756353056700,-511.105642,0.00020798,2]
[381799988,1756353056709,-384.864432,0.00020798,2]
[381799989,1756353056718,-151.0,0.00020798,2]
[381799990,1756353056727,-384.864432,0.00020798,2]
[381799991,1756353056736,-480.0,0.00020798,2]
[381799992,1756353056745,-384.864432,0.00020798,2]
[381799993,1756353056754,-151.0,0.00020798,2]
[381799994,1756353056763,-384.864432,0.00020798,2]
[381799995,1756353056772,-480.0,0.00020798,2]
[381799996,1756353056781,-480.0,0.00020798,2]
[381799997,1756353056790,-151.0,0.00020798,2]
[381799998,1756353056799,-170.268147,0.00020798,2]
[381799999,1756353056809,-480.0,0.00020798,2]
[381800000,1756353056818,-480.0,0.00020798,2]
[381800001,1756353056827,-151.0,0.00020798,2]
[381800002,1756353056836,-151.0,0.00020798,2]
[381800003,1756353056845,-421.977146,0.00020798,2]
[381800004,1756353056854,-151.0,0.00020798,2]
[381800005,1756353056863,-986.892753,0.00020798,2]
[381800006,1756353056872,-421.977146,0.00020798,2]
[381800007,1756353056881,-986.892753,0.00020798,2]
[381800008,1756353056891,-421.977146,0.00020798,2]
[381800009,1756353056899,-421.977146,0.00020798,2]
[381800010,1756353056909,-986.892753,0.00020798,2]
[381800011,1756353056918,-986.892753,0.00020798,2]
[381800012,1756353056927,-151.0,0.00020798,2]
[381800013,1756353056936,-480.0,0.00020798,2]
[381800014,1756353056946,-151.0,0.00020798,2]
[381800015,1756353056955,-151.0,0.00020798,2]
[381800016,1756353056964,-151.0,0.00020798,2]
[381800017,1756353056973,-151.0,0.00020798,2]
[381800018,1756353056982,-151.0,0.00020798,2]
[381800019,1756353056992,-151.0,0.00020798,2]
[381800020,1756353057001,-151.0,0.00020798,2]
[381800021,1756353057010,-151.0,0.00020798,2]
[381800022,1756353057020,-151.0,0.00020798,2]
[381800023,1756353057029,-151.0,0.00020798,2]
[381800024,1756353057038,-151.0,0.00020798,2]
[381800025,1756353057047,-151.0,0.00020798,2]
[381800026,1756353057057,-151.0,0.00020798,2]
[381800027,1756353057067,-151.0,0.00020798,2]
[381800028,1756353057076,-480.0,0.00020798,2]
[381800029,1756353057086,-483.01122863,0.00020798,2]
[381800030,1756353057236,-151.0,0.00020798,2]
[381800031,1756353057260,-151.0,0.00020798,2]
[381800032,1756353057270,-109333.1127422,0.00020798,2]
[381800033,1756353057280,-151.0,0.000208,4]
[381800034,1756353057289,-151.0,0.000208,3]
[381800035,1756353057300,-151.0,0.000208,4]
[381800036,1756353057310,-168.0,0.00020804,2]
[381800037,1756353057320,-6770.59382517,0.00020809,2]
[381800038,1756353057330,-354.0,0.0002081,2]
[381800039,1756353057339,-338.65313498,0.00020832,2]
[381800040,1756353057349,-299.0,0.00020843,2]
[381800041,1756353057359,-2815.58284374,0.00020853,2]
[381800042,1756353057368,-500.0,0.00020868,2]
[381800043,1756353057377,-168.0,0.0002087,2]
[381800044,1756353057387,-354.0,0.00020873,2]
[381800045,1756353057397,-250.0,0.00020883,2]
[381800046,1756353057406,-168.0,0.00020883,2]
[381800047,1756353057416,-151.0,0.000209,3]
[381800048,1756353057425,-151.0,0.000209,3]
[381800049,1756353057435,-151.0,0.000209,3]
[381800050,1756353057444,-480.0,0.00020901,2]
[381800051,1756353057454,-480.0,0.00020901,2]
[381800052,1756353057464,-480.0,0.00020901,2]
[381800053,1756353057473,-480.0,0.00020901,2]
[381800054,1756353057483,-637.32,0.00020901,2]
[381800055,1756353057493,-1202.56,0.00020901,2]
[381800056,1756353057503,-480.0,0.00020901,2]
[381800057,1756353057513,-980.36,0.00020901,2]
[381800058,1756353057522,-480.0,0.00020901,2]
[381800059,1756353057532,-605.08,0.00020901,2]
[381800060,1756353057540,-480.0,0.00020901,2]
[381800061,1756353057549,-886.02,0.00020901,2]
[381800062,1756353057559,-480.0,0.00020901,2]
[381800063,1756353057568,-480.0,0.00020901,2]
[381800064,1756353057577,-267.18,0.00020901,2]
[381800065,1756353057585,-8064.23,0.00020901,2]
[381800066,1756353057595,-985.28,0.00020901,2]
[381800067,1756353057604,-218.012443,0.00020901,2]
[381800068,1756353057614,-151.0,0.00020901,2]
[381800069,1756353057625,-218.012443,0.00020901,2]
[381800070,1756353057634,-218.012443,0.00020901,2]
[381800071,1756353057643,-151.0,0.00020901,2]
[381800072,1756353057652,-218.012443,0.00020901,2]
[381800073,1756353057661,-332.942545,0.00020901,2]
[381800074,1756353057672,-151.0,0.00020901,2]
[381800075,1756353057682,-332.942545,0.00020901,2]
[381800076,1756353057692,-151.0,0.00020901,2]
[381800077,1756353057702,-332.942545,0.00020901,2]
[381800078,1756353057711,-151.0,0.00020901,2]
[381800079,1756353057722,-332.942545,0.00020901,2]
[381800080,1756353057731,-214.917096,0.00020901,2]
[381800081,1756353057740,-151.0,0.00020901,2]
[381800082,1756353057750,-151.0,0.00020901,2]
[381800083,1756353057759,-151.0,0.00020901,2]
[381800084,1756353057768,-151.0,0.00020901,2]
[381800085,1756353057777,-151.0,0.00020901,2]
[381800086,1756353057786,-212.741212,0.00020901,2]
[381800087,1756353057795,-212.741212,0.00020901,2]
[381800088,1756353057804,-212.741212,0.00020901,2]
[381800089,1756353057813,-212.741212,0.00020901,2]
[381800090,1756353057822,-151.0,0.00020901,2]
[381800091,1756353057831,-6935.53,0.00020901,2]
[381800092,1756353057840,-271.59757,0.00020901,2]
[381800093,1756353057849,-151.0,0.00020901,2]
[381800094,1756353057858,-151.0,0.00020901,2]
[381800095,1756353057867,-151.0,0.00020901,2]
[381800096,1756353057877,-836.79,0.00020901,2]
[381800097,1756353057886,-933.81,0.00020901,2]
[381800098,1756353057895,-151.0,0.00020901,2]
[381800099,1756353057905,-1853.39,0.00020901,2]
[381800100,1756353057915,-151.0,0.00020901,2]
[381800101,1756353057924,-151.0,0.00020901,2]
[381800102,1756353057934,-151.0,0.00020901,2]
[381800103,1756353057943,-151.0,0.00020901,2]
[381800104,1756353057953,-151.0,0.00020901,2]
[381800105,1756353057963,-151.0,0.00020901,2]
[381800106,1756353057971,-151.0,0.00020901,2]
[381800107,1756353057981,-151.0,0.00020901,2]
[381800108,1756353057990,-151.0,0.00020901,2]
[381800109,1756353058001,-154.938946,0.00020901,2]
[381800110,1756353058010,-212.354292,0.00020901,2]
[381800111,1756353058019,-151.0,0.00020901,2]
[381800112,1756353058029,-151.0,0.00020901,2]
[381800113,1756353058038,-818.32,0.00020902,2]
[381800114,1756353058047,-1841.61,0.00020902,2]
[381800115,1756353058057,-2919.75940895,0.00020908,2]
[381800116,1756353058066,-396.23440574,0.00020913,2]
[381800117,1756353058075,-480.0,0.00020915,2]
[381800118,1756353058085,-599.15,0.00020915,2]
[381800119,1756353058094,-793.21,0.00020915,2]
[381800120,1756353058103,-2964.62,0.00020915,2]
[381800121,1756353058113,-481.20565846,0.00020949,2]
[381800122,1756353058122,-865.81,0.00020949,2]
[381800123,1756353058132,-1028.35,0.00020949,2]
[381800124,1756353058141,-480.0,0.00020949,2]
[381800125,1756353058150,-480.0,0.00020958,2]
[381800126,1756353058159,-999.61,0.00020958,2]
[381800127,1756353058168,-480.0,0.00020958,2]
[381800128,1756353058178,-480.0,0.00020958,2]
[381800129,1756353058188,-517.52,0.00020958,2]
[381800130,1756353058199,-480.0,0.00020958,2]
[381800131,1756353058208,-480.0,0.00020958,2]
[381800132,1756353058217,-480.0,0.00020958,2]
[381800133,1756353058227,-480.0,0.00020958,2]
[381800134,1756353058237,-492.41,0.00020958,2]
[381800135,1756353058250,-480.0,0.00020958,2]
[381800136,1756353058261,-480.0,0.00020958,2]
[381800137,1756353058270,-480.0,0.00020958,2]
[381800138,1756353058280,-480.0,0.00020958,2]
[381800139,1756353058289,-480.0,0.00020958,2]
[381800140,1756353058298,-480.0,0.00020958,2]
[381800141,1756353058308,-151.0,0.00020958,2]
[381800142,1756353058317,-151.0,0.00020958,2]
[381800143,1756353058327,-480.0,0.00020958,2]
[381800144,1756353058337,-151.0,0.00020958,2]
[381800145,1756353058346,-480.0,0.00020958,2]
[381800146,1756353058356,-660.58,0.00020958,2]
[381800147,1756353058365,-480.0,0.00020958,2]
[381800148,1756353058375,-151.0,0.00020958,2]
[381800149,1756353058384,-481.45179299,0.00020958,2]
[381800150,1756353058393,-201.478866,0.00020958,2]
[381800151,1756353058404,-480.0,0.00020958,2]
[381800152,1756353058413,-201.478866,0.00020958,2]
[381800153,1756353058422,-201.478866,0.00020958,2]
[381800154,1756353058432,-201.478866,0.00020958,2]
[381800155,1756353058441,-480.0,0.00020958,2]
[381800156,1756353058452,-480.0,0.00020958,2]
[381800157,1756353058462,-480.0,0.00020958,2]
[381800158,1756353058471,-480.0,0.00020958,2]
[381800159,1756353058481,-480.0,0.00020958,2]
[381800160,1756353058490,-619.36,0.00020958,2]
[381800161,1756353058500,-199.64287859,0.00020958,2]
[381800162,1756353058509,-480.0,0.00020958,2]
[381800163,1756353058519,-480.0,0.00020958,2]
[381800164,1756353058528,-480.0,0.00020958,2]
[381800165,1756353058540,-480.0,0.00020958,2]
[381800166,1756353058550,-562.05,0.00020958,2]
[381800167,1756353058560,-480.0,0.00020958,2]
[381800168,1756353058570,-480.0,0.00020958,2]
[381800169,1756353058580,-480.0,0.00020958,2]
[381800170,1756353058590,-480.0,0.00020958,2]
[381800171,1756353058602,-633.18,0.00020958,2]
[381800172,1756353058617,-4599.3,0.00020958,2]
[381800173,1756353058632,-1314.15,0.00020958,2]
[381800174,1756353058643,-605.8,0.00020958,2]
[381800175,1756353058654,-196.47053413,0.00020958,2]
[381800176,1756353058670,-480.0,0.00020958,2]
[381800177,1756353058679,-578.63,0.00020958,2]
[381800178,1756353058689,-480.0,0.00020958,2]
[381800179,1756353058700,-593.79,0.00020958,2]
[381800180,1756353058709,-480.0,0.00020958,2]
[381800181,1756353058719,-480.0,0.00020958,2]
[381800182,1756353058728,-488.76501945,0.00020958,2]
[381800183,1756353058737,-1708.14,0.00020958,2]
[381800184,1756353058747,-914.49,0.00020958,2]
[381800185,1756353058757,-480.0,0.00020958,2]
[381800186,1756353058769,-480.0,0.00020958,2]
[381800187,1756353058789,-777.14,0.00020958,2]
[381800188,1756353058799,-222.85630151,0.00020958,2]
[381800189,1756353058808,-1447.69,0.00020958,2]
[381800190,1756353058818,-480.0,0.00020958,2]
[381800191,1756353058827,-480.0,0.00020958,2]
[381800192,1756353058837,-1276.79,0.00020958,2]
[381800193,1756353058847,-480.0,0.00020958,2]
[381800194,1756353058856,-482.07105521,0.00020958,2]
[381800195,1756353058865,-852.38,0.00020958,2]
[381800196,1756353058875,-180.25260663,0.00020958,2]
[381800197,1756353058884,-480.0,0.00020958,2]
[381800198,1756353058893,-151.0,0.00020958,2]
[381800199,1756353058903,-609.68,0.00020958,2]
[381800200,1756353058913,-225.902232,0.00020958,2]
[381800201,1756353058922,-2830.6,0.00020958,2]
[381800202,1756353058931,-1559.42,0.00020958,2]
[381800203,1756353058941,-480.0,0.00020958,2]
[381800204,1756353058952,-2675.64,0.00020958,2]
[381800205,1756353058962,-152.121067,0.00020958,2]
[381800206,1756353058971,-609.62,0.00020958,2]
[381800207,1756353058980,-1831.595789,0.00020958,2]
[381800208,1756353058989,-1831.595789,0.00020958,2]
[381800209,1756353058999,-151.0,0.00020958,2]
[381800210,1756353059009,-151.0,0.00020958,2]
[381800211,1756353059018,-511.105642,0.00020958,2]
[381800212,1756353059027,-480.0,0.00020958,2]
[381800213,1756353059037,-1831.595789,0.00020958,2]
[381800214,1756353059046,-151.0,0.00020958,2]
[381800215,1756353059055,-151.0,0.00020958,2]
[381800216,1756353059065,-511.105642,0.00020958,2]
[381800217,1756353059074,-151.0,0.00020958,2]
[381800218,1756353059085,-1831.595789,0.00020958,2]
[381800219,1756353059095,-511.105642,0.00020958,2]
[381800220,1756353059105,-511.105642,0.00020958,2]
[381800221,1756353059114,-480.0,0.00020958,2]
[381800222,1756353059124,-384.864432,0.00020958,2]
[381800223,1756353059134,-183.893802,0.00020958,2]
[381800224,1756353059143,-480.0,0.00020958,2]
[381800225,1756353059152,-384.864432,0.00020958,2]
[381800226,1756353059161,-782.19,0.00020958,2]
[381800227,1756353059170,-384.864432,0.00020958,2]
[381800228,1756353059180,-151.0,0.00020958,2]
[381800229,1756353059193,-384.864432,0.00020958,2]
[381800230,1756353059203,-1274.31,0.00020958,2]
[381800231,1756353059214,-151.0,0.00020958,2]
[381800232,1756353059223,-480.0,0.00020958,2]
[381800233,1756353059232,-483.06525965,0.00020958,2]
[381800234,1756353059243,-480.0,0.00020958,2]
[381800235,1756353059252,-480.0,0.00020958,2]
[381800236,1756353059261,-480.0,0.00020958,2]
[381800237,1756353059271,-480.0,0.00020958,2]
[381800238,1756353059280,-480.0,0.00020958,2]
[381800239,1756353059290,-4556.72,0.00020958,2]
[381800240,1756353059300,-480.0,0.00020958,2]
[381800241,1756353059309,-480.0,0.00020958,2]
[381800242,1756353059319,-151.0,0.00020958,2]
[381800243,1756353059328,-421.977146,0.00020958,2]
[381800244,1756353059338,-151.0,0.00020958,2]
[381800245,1756353059347,-986.892753,0.00020958,2]
[381800246,1756353059357,-421.977146,0.00020958,2]
[381800247,1756353059367,-1660.06,0.00020958,2]
[381800248,1756353059377,-421.977146,0.00020958,2]
[381800249,1756353059387,-480.0,0.00020958,2]
[381800250,1756353059397,-986.892753,0.00020958,2]
[381800251,1756353059406,-421.977146,0.00020958,2]
[381800252,1756353059416,-986.892753,0.00020958,2]
[381800253,1756353059425,-480.0,0.00020958,2]
[381800254,1756353059435,-986.892753,0.00020958,2]
[381800255,1756353059445,-480.0,0.00020958,2]
[381800256,1756353059455,-480.0,0.00020958,2]
[381800257,1756353059465,-533.72,0.00020958,2]
[381800258,1756353059475,-545.08377483,0.00020958,2]
[381800259,1756353059485,-480.0,0.00020958,2]
[381800260,1756353059495,-151.0,0.00020958,2]
[381800261,1756353059505,-151.0,0.00020958,2]
[381800262,1756353059515,-1826.06,0.00020958,2]
[381800263,1756353059525,-480.0,0.00020958,2]
[381800264,1756353059534,-151.0,0.00020958,2]
[381800265,1756353059544,-656.32,0.00020958,2]
[381800266,1756353059553,-480.0,0.00020958,2]
[381800267,1756353059563,-480.0,0.00020958,2]
[381800268,1756353059573,-3027.79050709,0.00020963,2]
[381800269,1756353059583,-12868.74132072,0.00020969,2]
[381800270,1756353059592,-507.86,0.00020969,2]
[381800271,1756353059601,-480.0,0.00020969,2]
[381800272,1756353059610,-480.0,0.00020969,2]
[381800273,1756353059620,-569.76,0.00020969,2]
[381800274,1756353059629,-726.86,0.00020969,2]
[381800275,1756353059639,-480.0,0.00020969,2]
[381800276,1756353059648,-480.0,0.00020969,2]
[381800277,1756353059658,-753.93,0.00020969,2]
[381800278,1756353059668,-480.0,0.00020969,2]
[381800279,1756353059679,-1086.85,0.00020969,2]
[381800280,1756353059690,-1635.35,0.00020969,2]
[381800281,1756353059700,-915.11,0.00020969,2]
[381800282,1756353059710,-481.53008433,0.00020969,2]
[381800283,1756353059720,-579.31,0.00020969,2]
[381800284,1756353059731,-620.64,0.00020969,2]
[381800285,1756353059741,-550.51,0.00020969,2]
[381800286,1756353059751,-151.0,0.00020969,2]
[381800287,1756353059761,-480.0,0.00020969,2]
[381800288,1756353059771,-151.0,0.00020969,2]
[381800289,1756353059782,-151.0,0.00020969,2]
[381800290,1756353059794,-214.64421554,0.00020969,2]
[381800291,1756353059804,-732.49,0.00020969,2]
[381800292,1756353059814,-480.0,0.00020969,2]
[381800293,1756353059824,-774.3,0.00020969,2]
[381800294,1756353059834,-759.09,0.00020969,2]
[381800295,1756353059843,-514.24,0.00020969,2]
[381800296,1756353059853,-510.08,0.00020969,2]
[381800297,1756353059863,-821.08,0.00020969,2]
[381800298,1756353059874,-352.93863762,0.00020969,2]
[381800299,1756353059883,-876.85,0.00020969,2]
[381800300,1756353059893,-1260.83,0.00020969,2]
[381800301,1756353059904,-606.44,0.00020969,2]
[381800302,1756353059915,-577.9,0.00020969,2]
[381800303,1756353059925,-480.61514323,0.00020969,2]
[381800304,1756353059935,-480.0,0.00020969,2]
[381800305,1756353059946,-480.0,0.00020969,2]
[381800306,1756353059956,-888.03,0.00020969,2]
[381800307,1756353059967,-480.0,0.00020969,2]
[381800308,1756353059977,-515.18,0.00020969,2]
[381800309,1756353059987,-786.69,0.00020969,2]
[381800310,1756353059997,-601.59,0.00020969,2]
[381800311,1756353060007,-480.0,0.00020969,2]
[381800312,1756353060017,-503.79,0.00020969,2]
[381800313,1756353060028,-560.04,0.00020969,2]
[381800314,1756353060038,-1055.19,0.00020969,2]
[381800315,1756353060049,-574.18,0.00020969,2]
[381800316,1756353060060,-533.09,0.00020969,2]
[381800317,1756353060070,-1029.59,0.00020969,2]
[381800318,1756353060081,-708.43,0.00020969,2]
[381800319,1756353060092,-480.0,0.00020969,2]
[381800320,1756353060103,-480.0,0.00020969,2]
[381800321,1756353060114,-516.65,0.00020969,2]
[381800322,1756353060126,-480.0,0.00020969,2]
[381800323,1756353060137,-804.67,0.00020969,2]
[381800324,1756353060148,-505.22,0.00020969,2]
[381800325,1756353060158,-480.0,0.00020969,2]
[381800326,1756353060169,-480.0,0.00020969,2]
[381800327,1756353060180,-480.0,0.00020969,2]
[381800328,1756353060197,-949.31,0.00020969,2]
[381800329,1756353060208,-508.4,0.00020969,2]
[381800330,1756353060218,-1231.74,0.00020969,2]
[381800331,1756353060229,-833.56,0.00020969,2]
[381800332,1756353060243,-557.08,0.00020969,2]
[381800333,1756353060253,-1165.82,0.00020969,2]
[381800334,1756353060265,-480.0,0.00020969,2]
[381800335,1756353060430,-1428.12,0.00020969,2]
[381800336,1756353060441,-480.0,0.00020969,2]
[381800337,1756353060454,-480.0,0.00020969,2]
[381800338,1756353060465,-660.36,0.00020969,2]
[381800339,1756353060475,-480.0,0.00020969,2]
[381800340,1756353060485,-480.0,0.00020969,2]
[381800341,1756353060496,-1547.32,0.00020969,2]
[381800342,1756353060506,-480.0,0.00020969,2]
[381800343,1756353060517,-480.0,0.00020969,2]
[381800344,1756353060528,-753.68,0.00020969,2]
[381800345,1756353060539,-604.15,0.00020969,2]
[381800346,1756353060549,-480.0,0.00020969,2]
[381800347,1756353060560,-507.66,0.00020969,2]
[381800348,1756353060571,-216.21874,0.00020969,2]
[381800349,1756353060581,-216.21874,0.00020969,2]
[381800350,1756353060593,-216.21874,0.00020969,2]
[381800351,1756353060605,-480.0,0.00020969,2]
[381800352,1756353060616,-603.295165,0.00020969,2]
[381800353,1756353060627,-216.21874,0.00020969,2]
[381800354,1756353060639,-603.295165,0.00020969,2]
[381800355,1756353060649,-480.0,0.00020969,2]
[381800356,1756353060661,-603.295165,0.00020969,2]
[381800357,1756353060672,-603.295165,0.00020969,2]
[381800358,1756353060683,-518.69,0.00020969,2]
[381800359,1756353060693,-151.0,0.00020969,2]